Cogmind - Beta 14 @@@ ROGUE MODE // 2024.12.02 @ 23:41:46 Player: akira Result: Destroyed by P-60 Hacker with Shock Rifle Performance ------------- Evolutions (4) 2000 Regions Visited (13) 2600 Robots Destroyed (123) 615 Value Destroyed (3604) 3604 Prototype IDs (43) 860 Alien Tech Used (1) 200 Bonus (661) 661 TOTAL SCORE: 10540 Bonus ------- Follower Combat Kills 110 Aligned with FarCom 300 Met Data Miner 300 Friendly Fire -49 Cogmind --------- Core Integrity 0/850 Matter 300/300 Energy 61/100 System Corruption 0% Temperature Cool (0) Movement Flying (35) Location -6/Factory Parts ------- > --- POWER (2) -------- (None) > --- PROPULSION (5) --- Cooled Cesium-ion Thruster > --- UTILITY (7) ------ Improved Terrain Scanner Hacking Suite System Shield Improved System Restoration Module > --- WEAPON (2) ------- Power Maul > --- INVENTORY (5) ---- Micro Nuclear Core Light Fission Core Force Booster Improved Trap Extractor (0/6) Peak State ------------ > --- POWER ------------ Light Angular Momentum Engine > --- PROPULSION ------- Improved Medium Treads Carbon-fiber Leg Improved Titanium Leg Flexi-carbon Leg Enhanced Flexi-carbon Leg > --- UTILITY ---------- Medium Storage Unit 0b10 Decoder Chip [Skirmisher] Makeshift Transmission Jammer Hacking Suite System Shield System Shield Dynamic Insulation System > --- WEAPON ----------- Precision Assault Rifle Magnetic Acceleration Cannon > --- INVENTORY -------- Cooled Cesium-ion Thruster Advanced Heat Sink Advanced Terrain Scan Processor Force Booster ECM Suite Improved Trap Extractor Core Expander Guided Plasma Cannon Gauss Rifle Katana [Rating: 68] Favorites ----------- Power Heavy Deuterium Engine Engine Heavy Deuterium Engine Power Core Light Nuclear Core Propulsion Cooled Airjet Treads Light Treads Leg Carbon-fiber Leg Hover Unit Cooled Airjet Flight Unit Flight Unit Utility Hacking Suite Device Improved Terrain Scanner Storage Medium Storage Unit Processor Advanced Terrain Scan Processor Hackware Hacking Suite Protection Improved Medium Armor Plating Weapon Precision Assault Rifle Energy Gun Medium Laser Energy Cannon Guided Plasma Cannon Ballistic Gun Precision Assault Rifle Ballistic Cannon Magnetic Acceleration Cannon Launcher Rocket Launcher Impact Weapon Power Maul Slashing Weapon Katana Build | -11 -10 -10 -10 -9 -8 -7 -7 -7 -7 -7 -7 -6 -6 ------- Run | Yrd Mat Min Exi Min Mat Fac Was Fac Low Low Dat Pro Fac Slots Evolved 8 | . . . . . 4 2 . . . . . . 2 Power . | . . . . . . . . . . . . . . Propulsion 3 | . . . . . 1 1 . . . . . . 1 Utility 5 | . . . . . 3 1 . . . . . . 1 Weapon . | . . . . . . . . . . . . . . Parts Attached 150 | 6 2 3 . 5 33 23 . 17 . 5 . 23 33 Power 16 | 1 . 1 . . 4 2 . 1 . . . 1 6 Engine 10 | 1 . 1 . . 2 2 . 1 . . . 1 2 Core 6 | . . . . . 2 . . . . . . . 4 Reactor . | . . . . . . . . . . . . . . Propulsion 36 | 2 . 2 . . 11 6 . 7 . . . 4 4 Treads 9 | . . 2 . . 5 . . . . . . 1 1 Leg 10 | 2 . . . . 3 . . . . . . 3 2 Wheel . | . . . . . . . . . . . . . . Hover 13 | . . . . . . 6 . 7 . . . . . Flight 4 | . . . . . 3 . . . . . . . 1 Utility 38 | 1 1 . . . 8 3 . 4 . . . 12 9 Device 21 | . . . . . 4 2 . 2 . . . 8 5 Storage 3 | 1 . . . . . . . 1 . . . 1 . Processor 6 | . 1 . . . 2 . . 1 . . . . 2 Hackware 5 | . . . . . 2 1 . . . . . . 2 Protection 3 | . . . . . . . . . . . . 3 . Artifact . | . . . . . . . . . . . . . . Weapon 60 | 2 1 . . 5 10 12 . 5 . 5 . 6 14 Energy Gun 2 | 1 . . . . . . . . . . . . 1 Energy Cannon 3 | . . . . . . . . . . . . 3 . Ballistic Gun 28 | 1 1 . . 3 5 6 . 2 . 3 . 1 6 Ballistic Cannon 3 | . . . . . . . . . . . . . 3 Launcher 7 | . . . . 2 1 1 . . . 2 . 1 . Special Weapon . | . . . . . . . . . . . . . . Impact Weapon 4 | . . . . . 3 . . . . . . . 1 Slashing Weapon 13 | . . . . . 1 5 . 3 . . . 1 3 Piercing Weapon . | . . . . . . . . . . . . . . Special Melee Weapon . | . . . . . . . . . . . . . . Unidentified Prototypes 10 | . . . . . 3 2 . 2 . . . 1 2 Corrupted Parts 1 | . . . . . . . . . . . . 1 . System Corruption 10 | . . . . . . . . . . . . 10 . Parts Lost 41 | . . 2 . . 5 . . . . . . 15 19 Power 7 | . . 1 . . 2 . . . . . . 1 3 Propulsion 14 | . . 1 . . 2 . . . . . . 5 6 Utility 10 | . . . . . . . . . . . . 5 5 Weapon 10 | . . . . . 1 . . . . . . 4 5 Highest Loss Streak 15 | . . 1 . . 3 . . . . . . 9 15 To Critical Strikes 1 | . . . . . . . . . . . . 1 . Average Slot Usage (%) 94 | . 92 97 100 100 95 98 100 99 100 100 100 79 85 Engine 7 | . 14 13 14 14 4 6 7 7 7 7 7 6 4 Treads 5 | . . 16 28 28 11 . . . . . . 4 . Leg 7 | . 28 9 . . 9 15 . . . . . 2 23 Hover 12 | . . . . . . 13 30 29 30 30 30 7 . Device 6 | . . . . . 9 7 7 7 7 7 7 6 13 Storage 8 | . 14 14 14 14 9 7 7 7 7 7 7 6 5 Processor 9 | . 6 14 14 14 22 7 7 7 7 7 7 7 5 Hackware 15 | . . . . . 4 23 23 23 23 23 23 19 15 Ballistic Gun 10 | . 26 28 28 24 11 11 7 7 7 11 15 6 2 Slashing Weapon 3 | . . . . . 2 3 7 6 7 2 . 1 2 Peak Build Rating 68 | 7 8 8 8 12 40 50 49 55 54 56 56 56 68 Average Rating 41 | 4 7 7 8 10 31 46 49 51 54 55 56 43 55 On Entrance 32 | . 7 8 8 8 11 40 49 49 54 54 56 56 54 Naked Turns . | . . . . . . . . . . . . . . Heaviest Build 51 | 12 12 12 12 15 24 24 22 29 28 33 30 51 45 Greatest Support 98 | 20 20 40 40 40 66 50 32 48 48 32 32 63 98 Greatest Overweight (x) 5 | 1 . 1 . . . 1 . 1 . 1 . 5 5 Average Overweight (x) . | . . . . . . . . . . . . . . Largest Inventory Capacity 10 | 8 8 8 8 8 8 8 8 10 10 10 10 10 10 Average Capacity 8 | 7 8 8 8 8 8 8 8 9 10 10 10 9 9 Most Carried 10 | 8 8 8 8 8 8 8 8 10 10 10 10 10 10 Average Carried 8 | 4 7 7 8 7 7 7 8 9 10 10 10 8 8 Final Capacity 10 | 8 8 8 8 8 8 8 8 10 10 10 10 10 5 Final Carried 10 | 8 8 8 8 8 8 8 8 10 10 10 10 10 4 Class Distribution -------------------- 29% | Hacker-Scout 28% | Hacker-Mutant 20% | Mutant 5% | Scavenger-Mutant 4% | Hacker-Skirmisher 3% | Scavenger-Skirmisher 3% | Hacker-Assassin Dominant Class ---------------- Mutant | -10/Materials Mutant | -10/Mines Mutant | -10/Exiles Mutant | -9/Mines Scavenger-Skirmisher | -8/Materials Hacker-Skirmisher | -7/Factory Hacker-Scout | -7/Waste Hacker-Scout | -7/Factory Hacker-Mutant | -7/Lower Caves Hacker-Mutant | -7/Lower Caves Hacker-Mutant | -7/Data Miner Hacker-Mutant | -6/Proximity Caves Hacker-Mutant | -6/Factory Resources | -11 -10 -10 -10 -9 -8 -7 -7 -7 -7 -7 -7 -6 -6 ----------- Run | Yrd Mat Min Exi Min Mat Fac Was Fac Low Low Dat Pro Fac Matter Collected 3342 | 260 86 122 . 186 516 306 . 360 . 211 . 306 989 Remotely . | . . . . . . . . . . . . . . Salvage Created 4484 | 26 141 135 . 239 783 306 . 663 . 129 . 514 1548 Parts 277 | 5 8 21 . 22 40 23 . 56 . 8 . 19 75 Haulers Intercepted 2 | . 1 . . . 1 . . . . . . . . Recyclers Shooed 3 | 1 . . . . . . . . . . . . 2 Parts Field Recycled . | . . . . . . . . . . . . . . Retrieved Matter . | . . . . . . . . . . . . . . Parts Self-Destructed 29 | . . . . . . . . . 2 5 . 22 . Prevented 6 | . . . . . . . . . 3 . . 3 . Kills | -11 -10 -10 -10 -9 -8 -7 -7 -7 -7 -7 -7 -6 -6 ------- Run | Yrd Mat Min Exi Min Mat Fac Was Fac Low Low Dat Pro Fac Combat Hostiles Destroyed 78 | . 2 10 . 8 12 6 . 3 . 8 . 11 18 Melee 12 | . . . . . 6 . . 1 . . . 3 2 Guns 46 | . 2 10 . 6 4 6 . 2 . 3 . 4 9 Cannons 7 | . . . . . . . . . . . . . 7 AOE 11 | . . . . 2 1 . . . . 5 . 3 . Classes Destroyed 16 | 1 2 2 . 1 8 1 . . . . . . 1 Worker 14 | . . . . . 2 . . 6 . . . . 6 Builder 8 | . . . . . 1 . . 4 . . . . 3 Tunneler 4 | 1 . . . . . 1 . . . . . . 2 Hauler 2 | . 1 . . . 1 . . . . . . . . Recycler 10 | . . . . . 2 . . 4 . . . . 4 Mechanic 1 | . . . . . 1 . . . . . . . . Operator 3 | . . . . . 1 . . 2 . . . . . Watcher 3 | . . . . . 1 . . . . . . . 2 Swarmer 23 | . . 9 . 3 3 . . . . 4 . 4 . Grunt 25 | . 2 . . 4 5 . . . . 3 . 5 6 Brawler 3 | . . . . 1 . . . . . 1 . 1 . Sentry 6 | . . . . . 1 1 . . . . . 1 3 Demolisher 1 | . . 1 . . . . . . . . . . . Specialist 2 | . . . . . . . . . . . . . 2 Hunter 6 | . . . . . 3 . . . . . . . 3 Programmer 12 | . . . . . . 5 . 3 . . . . 4 Best Kill Streak 4 | 1 2 4 . 3 4 1 . 4 . 4 . 3 4 Combat Bots Only 4 | . 1 4 . 3 2 1 . 1 . 4 . 3 3 Max Kills in Single Turn 2 | 1 1 1 . 1 1 1 . 1 . 2 . 2 1 Gunslinging . | . . . . . . . . . . . . . . Exploded 2 | . . . . 1 1 . . . . 2 . 2 . Melee 1 | . . . . . 1 . . 1 . . . 1 1 Uniques/NPCs Destroyed . | . . . . . . . . . . . . . . Combat | -11 -10 -10 -10 -9 -8 -7 -7 -7 -7 -7 -7 -6 -6 -------- Run | Yrd Mat Min Exi Min Mat Fac Was Fac Low Low Dat Pro Fac Hostile Shots Fired 669 | . 11 30 . 11 76 39 . 21 20 19 . 140 302 Missed 203 | . 6 3 . 1 12 18 . 4 12 8 . 42 97 Damage Taken 7405 | . 58 366 . 179 848 293 . 291 31 232 . 2102 3005 Core 1757 | . . 80 . 66 155 60 . 50 . 9 . 476 861 Absorbed by Shields . | . . . . . . . . . . . . . . Regen/Repaired (Parts) 47 | . . . . . . . . 47 . . . . . Core Remaining (%) 56 | 100 . . . 41 71 . . . . . . 15 . Volleys Fired 250 | 2 10 17 . 19 31 23 . 7 . 21 . 24 96 Largest 2 | 2 2 2 . 2 2 2 . 2 . 2 . 2 2 Hottest 120 | 70 40 40 . 43 56 56 . 56 . 56 . 120 81 Shots Fired 410 | 4 20 34 . 32 49 46 . 14 . 23 . 37 151 Gun 323 | 4 20 34 . 29 46 46 . 14 . 14 . 30 86 Cannon 71 | . . . . . . . . . . . . 6 65 Launcher 16 | . . . . 3 3 . . . . 9 . 1 . Special . | . . . . . . . . . . . . . . Kinetic 386 | 2 20 34 . 29 46 46 . 14 . 14 . 30 151 Thermal 8 | 2 . . . . . . . . . . . 6 . Explosive 16 | . . . . 3 3 . . . . 9 . 1 . Electromagnetic . | . . . . . . . . . . . . . . Robot Hit Streak 21 | 3 8 9 . 13 7 13 . 7 . 16 . 14 21 Robot Miss Streak 6 | . 1 3 . 1 6 1 . 2 . 2 . 3 4 Penetration Max 1 | . . . . . . . . . . . . . 1 Secondary Targets 1 | . . . . . . . . . . . . 1 . Max Gunslinging Chain 1 | . . . . . . . . . . . . 1 . Shots Hit Robots 354 | 3 16 19 . 24 53 38 . 30 . 14 . 38 119 Core Hits 174 | 1 5 11 . 14 26 13 . 18 . 11 . 23 52 Critical Kills 1 | . . 1 . . . . . . . . . . . Critical Parts Destroyed 11 | . . . . . 3 . . . . . . . 8 Critical Strikes 20 | . . 1 . . 5 . . . . . . 1 13 Destroy 3 | . . 1 . . . . . . . . . . 2 Blast 5 | . . . . . . . . . . . . . 5 Smash 9 | . . . . . 3 . . . . . . . 6 Sever 3 | . . . . . 2 . . . . . . 1 . Melee Attacks 160 | . . . . . 33 12 . 53 3 . . 17 42 Impact 37 | . . . . . 17 . . . . . . . 20 Slashing 123 | . . . . . 16 12 . 53 3 . . 17 22 Piercing . | . . . . . . . . . . . . . . Sneak Attacks 30 | . . . . . 3 1 . 14 . . . . 12 Combat Hostiles 1 | . . . . . 1 . . . . . . . . Follow-up Attacks . | . . . . . . . . . . . . . . Damage Inflicted 11270 | 38 196 223 . 498 1712 957 . 1486 . 1072 . 1231 3857 Guns 4221 | 38 196 223 . 305 556 851 . 242 . 222 . 435 1153 Cannons 1439 | . . . . . . . . . . . . 203 1236 Explosions 1424 | . . . . 193 115 . . . . 850 . 266 . Melee 4186 | . . . . . 1041 106 . 1244 . . . 327 1468 Ramming . | . . . . . . . . . . . . . . Kinetic 5444 | 25 196 223 . 305 556 851 . 242 . 222 . 435 2389 Thermal 216 | 13 . . . . . . . . . . . 203 . Explosive 1424 | . . . . 193 115 . . . . 850 . 266 . Electromagnetic . | . . . . . . . . . . . . . . Impact 1732 | . . . . . 598 . . . . . . . 1134 Slashing 2454 | . . . . . 443 106 . 1244 . . . 327 334 Piercing . | . . . . . . . . . . . . . . Highest Corruption 13 | . . . . . . 1 . 1 . . . 13 1 Average Corruption 2 | . . . . . . 1 . 1 . . . 11 1 Corruption Purged 3 | . . . . . . 1 . 1 . . . . 1 Corruption Blocked . | . . . . . . . . . . . . . . Effects 20 | . . . . . . 2 . 6 . . . 11 1 Message Errors 7 | . . . . . . 1 . 1 . . . 5 . Matter Fused 2 | . . . . . . . . 1 . . . 1 . Heat Flow Errors 1 | . . . . . . . . 1 . . . . . Energy Discharges 3 | . . . . . . 1 . 1 . . . 1 . Data Loss (minor) 3 | . . . . . . . . 2 . . . . 1 Data Loss (major) 3 | . . . . . . . . . . . . 3 . Alerts 1 | . . . . . . . . . . . . 1 . Overload Shots . | . . . . . . . . . . . . . . Overflow Damage 1387 | . . . . . 289 46 . 192 . 13 . 5 842 Projectiles 18 | . . . . . . . . . . . . 5 13 Explosions 17 | . . . . . 4 . . . . 13 . . . Melee 1352 | . . . . . 285 46 . 192 . . . . 829 Knockbacks 16 | . . . . . 2 . . . . . . . 14 Impact 10 | . . . . . 2 . . . . . . . 8 Kinetic 6 | . . . . . . . . . . . . . 6 Secondary . | . . . . . . . . . . . . . . Self-Inflicted Damage 110 | . . . . 37 . . . . . 73 . . . Shots 4 | . . . . 1 . . . . . 3 . . . Rammed . | . . . . . . . . . . . . . . Targets Rammed . | . . . . . . . . . . . . . . Kicked . | . . . . . . . . . . . . . . Crushed . | . . . . . . . . . . . . . . Highest Temperature 237 | 9 . . . 11 3 . . 167 . 2 . 237 19 Average Temperature 35 | 6 . . . 3 3 . . 86 . 1 . 81 7 Received Heat Transfer 1455 | . 30 . . 54 207 6 . 27 . 18 . 627 486 Siege Activations . | . . . . . . . . . . . . . . Robots Corrupted 7 | . . . . . 2 . . . . . . . 5 Combat Hostiles 1 | . . . . . 1 . . . . . . . . Parts Fried 13 | . . . . . 4 . . . . . . . 9 Impact Corruptions 29 | . . . . . 7 . . . . . . . 22 Robots Melted . | . . . . . . . . . . . . . . Combat Hostiles . | . . . . . . . . . . . . . . Parts Melted . | . . . . . . . . . . . . . . Heat Transferred 517 | 37 . . . . . . . . . . . 480 . Parts Sabotaged . | . . . . . . . . . . . . . . Parts Stolen . | . . . . . . . . . . . . . . Parts Stripped . | . . . . . . . . . . . . . . Power Chain Reactions . | . . . . . . . . . . . . . . Alert | -11 -10 -10 -10 -9 -8 -7 -7 -7 -7 -7 -7 -6 -6 ------- Run | Yrd Mat Min Exi Min Mat Fac Was Fac Low Low Dat Pro Fac Peak Influence 323 | 5 80 256 . 163 323 159 27 254 . . . . 211 Initial 129 | . 3 31 . . 63 129 12 18 . . . . 38 Average 76 | 1 31 94 . 29 124 61 22 78 . . . . 77 Maximum Alert Level 1 | . . 1 . . 1 . . 1 . . . . 1 Low Security (%) 88 | 100 100 97 . 100 64 100 100 78 . . . . 98 Level 1 11 | . . 2 . . 35 . . 21 . . . . 1 Level 2 . | . . . . . . . . . . . . . . Level 3 . | . . . . . . . . . . . . . . Level 4 . | . . . . . . . . . . . . . . Level 5 . | . . . . . . . . . . . . . . High Security . | . . . . . . . . . . . . . . Max Security . | . . . . . . . . . . . . . . Squads Dispatched 25 | . . . . . 3 5 . 8 . . . 1 8 Investigation 6 | . . . . . . . . 5 . . . . 1 Extermination 12 | . . . . . . 5 . 3 . . . . 4 Reinforcement 6 | . . . . . 3 . . . . . . . 3 Assault 1 | . . . . . . . . . . . . 1 . Garrison . | . . . . . . . . . . . . . . Intercept . | . . . . . . . . . . . . . . Searches Triggered . | . . . . . . . . . . . . . . Construction Impeded . | . . . . . . . . . . . . . . Haulers Reinforced 1 | . . . . . . . . . . . . . 1 Active Scanning Responses . | . . . . . . . . . . . . . . Cargo Convoy Interrupts 1 | . . . . . . . . . . . . . 1 Stealth | -11 -10 -10 -10 -9 -8 -7 -7 -7 -7 -7 -7 -6 -6 --------- Run | Yrd Mat Min Exi Min Mat Fac Was Fac Low Low Dat Pro Fac Distress Signals 7 | . . . . . 4 . . 1 . . . . 2 Communications Jammed 1 | . . . . . . . . . . . . . 1 Distress Signals 1 | . . . . . . . . . . . . . 1 Times Spotted 139 | . 4 9 . 7 21 6 5 18 13 8 . 20 28 Peak Tracking Total 8 | . 2 3 . 2 4 1 6 5 8 4 . 8 3 Tactical Retreats 9 | . 1 . . . 2 . . 3 2 . . . 1 Traps | -11 -10 -10 -10 -9 -8 -7 -7 -7 -7 -7 -7 -6 -6 ------- Run | Yrd Mat Min Exi Min Mat Fac Was Fac Low Low Dat Pro Fac Traps Triggered 4 | . . . . . . 1 . 3 . . . . . Indirectly . | . . . . . . . . . . . . . . Trap Hack Attempts . | . . . . . . . . . . . . . . Triggered . | . . . . . . . . . . . . . . Disarmed . | . . . . . . . . . . . . . . Reprogrammed 1 | . . . . . . 1 . . . . . . . Reused 1 | . . . . . . . . . . . . 1 . Traps Extracted . | . . . . . . . . . . . . . . Installed 2 | . . . . . . . . . . . . 2 . Triggered 4 | . . . . . . . . . 1 . . 1 2 Most Traps Carried 6 | . . . . . . . . . . . . 6 . Machines | -11 -10 -10 -10 -9 -8 -7 -7 -7 -7 -7 -7 -6 -6 ---------- Run | Yrd Mat Min Exi Min Mat Fac Was Fac Low Low Dat Pro Fac Machines Disabled 1 | . . . . . . . . . . . . . 1 Max in Single Turn 1 | . . . . . . . . . . . . . 1 Garrison Access 4 | . . . . . . 1 . 3 . . . . . Machines Repaired . | . . . . . . . . . . . . . . Machines Dismantled . | . . . . . . . . . . . . . . Machines Sabotaged . | . . . . . . . . . . . . . . Overloaded Fab Kills . | . . . . . . . . . . . . . . Hacking | -11 -10 -10 -10 -9 -8 -7 -7 -7 -7 -7 -7 -6 -6 --------- Run | Yrd Mat Min Exi Min Mat Fac Was Fac Low Low Dat Pro Fac Machines Accessed 48 | . . . 4 1 6 7 . 21 . . 4 . 5 Terminals 25 | . . . . . 5 5 . 11 . . . . 4 Fabricators 4 | . . . . . . . . 3 . . . . 1 Repair Stations 1 | . . . . . . . . 1 . . . . . Recycling Units 3 | . . . . . 1 . . 2 . . . . . Scanalyzers 2 | . . . . . . 1 . 1 . . . . . Garrison Access 4 | . . . . . . 1 . 3 . . . . . Total Hacks 174 | . . . 27 1 18 27 . 58 . . 26 . 17 Successful 116 | . . . 27 1 9 17 . 31 . . 26 . 5 Failed 58 | . . . . . 9 10 . 27 . . . . 12 Catastrophic 11 | . . . . . 1 2 . 7 . . . . 1 Database Lockouts . | . . . . . . . . . . . . . . Manual 62 | . . . 1 . 10 17 . 28 . . . . 6 Terminals 86 | . . . . . 13 23 . 38 . . . . 12 Fabricators 14 | . . . . . . . . 9 . . . . 5 Repair Stations 2 | . . . . . . . . 2 . . . . . Recycling Units 7 | . . . . . 5 . . 2 . . . . . Scanalyzers 5 | . . . . . . 3 . 2 . . . . . Garrison Access 6 | . . . . . . 1 . 5 . . . . . Terminal Hacks 82 | . . . 27 1 3 11 . 12 . . 26 . 2 Record 37 | . . . 26 . . . . . . . 11 . . Part Schematic 9 | . . . . . . . . 1 . . 8 . . Robot Schematic 4 | . . . . . . . . . . . 4 . . Robot Analysis 1 | . . . . . 1 . . . . . . . . Prototype ID Bank 3 | . . . . . . . . . . . 3 . . Open Door 1 | . . . . 1 . . . . . . . . . Level Access Points 2 | . . . . . 1 1 . . . . . . . Branch Access Points 2 | . . . . . . 1 . 1 . . . . . Terminal Index 2 | . . . . . . 1 . 1 . . . . . Fabricator Index 2 | . . . . . . 1 . 1 . . . . . Repair Station Index 1 | . . . . . . 1 . . . . . . . Scanalyzer Index 2 | . . . . . . 1 . 1 . . . . . Alert Level 2 | . . . . . . . . 1 . . . . 1 Locate Traps 4 | . . . . . . 2 . 2 . . . . . Reprogram Traps 1 | . . . . . . 1 . . . . . . . Patrol Status 1 | . . . . . . 1 . . . . . . . Investigation Status 1 | . . . . . . 1 . . . . . . . Recall Investigation 3 | . . . . . . . . 2 . . . . 1 Hauler Manifests 1 | . . . . . . . . 1 . . . . . Zone Layout 2 | . . . . . 1 . . 1 . . . . . Derelict Proto ID Bank 1 | . . . 1 . . . . . . . . . . Fabricator Hacks 7 | . . . . . . . . 5 . . . . 2 Load Schematic 4 | . . . . . . . . 3 . . . . 1 Build 3 | . . . . . . . . 2 . . . . 1 Repair Station Hacks 2 | . . . . . . . . 2 . . . . . Scan Component 1 | . . . . . . . . 1 . . . . . Repair 1 | . . . . . . . . 1 . . . . . Recycling Unit Hacks 3 | . . . . . 1 . . 2 . . . . . Report Inventory 2 | . . . . . . . . 2 . . . . . Retrieve Components 1 | . . . . . 1 . . . . . . . . Scanalyzer 4 | . . . . . . 2 . 2 . . . . . Insert Component 2 | . . . . . . 1 . 1 . . . . . Analyze 2 | . . . . . . 1 . 1 . . . . . Garrison Access Hacks 4 | . . . . . . 1 . 3 . . . . . Seal Access 4 | . . . . . . 1 . 3 . . . . . Unauthorized Hacks 14 | . . . . . 5 3 . 5 . . . . 1 Terminals 14 | . . . . . 5 3 . 5 . . . . 1 Assimilate 2 | . . . . . 1 . . 1 . . . . . Botnet 12 | . . . . . 4 3 . 4 . . . . 1 Fabricators . | . . . . . . . . . . . . . . Repair Stations . | . . . . . . . . . . . . . . Recycling Units . | . . . . . . . . . . . . . . Scanalyzers . | . . . . . . . . . . . . . . Garrison Access . | . . . . . . . . . . . . . . Data Cores Recovered 1 | . . . . . . . . 1 . . . . . Used 1 | . . . . . . . . 1 . . . . . Hacking Detections 27 | . . . . . 4 4 . 14 . . . . 5 Full Trace Events 6 | . . . . . . . . 5 . . . . 1 Feedback Events . | . . . . . . . . . . . . . . Feedback Blocked . | . . . . . . . . . . . . . . Robot Schematics Acquired 4 | . . . . . . . . . . . 4 . . Robots Built . | . . . . . . . . . . . . . . Authchips . | . . . . . . . . . . . . . . Time . | . . . . . . . . . . . . . . Total Robot Build Rating . | . . . . . . . . . . . . . . Part Schematics Acquired 11 | . . . . . . 1 . 2 . . 8 . . Parts Built 3 | . . . . . . . . 2 . . . . 1 Authchips . | . . . . . . . . . . . . . . Time 286 | . . . . . . . . 134 . . . . 152 Total Part Build Rating 13 | . . . . . . . . 8 . . . . 5 Parts Repaired 1 | . . . . . . . . 1 . . . . . Time 70 | . . . . . . . . 70 . . . . . Parts Recycled . | . . . . . . . . . . . . . . Recycled Matter . | . . . . . . . . . . . . . . Retrieved Matter . | . . . . . . . . . . . . . . Retrieved Components 5 | . . . . . 5 . . . . . . . . Parts Scanalyzed 2 | . . . . . . 1 . 1 . . . . . Part Schematics Acquired 2 | . . . . . . 1 . 1 . . . . . Parts Damaged . | . . . . . . . . . . . . . . Bothacking | -11 -10 -10 -10 -9 -8 -7 -7 -7 -7 -7 -7 -6 -6 ------------ Run | Yrd Mat Min Exi Min Mat Fac Was Fac Low Low Dat Pro Fac Used RIF Installer . | . . . . . . . . . . . . . . Robots Hacked . | . . . . . . . . . . . . . . Non-combat . | . . . . . . . . . . . . . . Combat . | . . . . . . . . . . . . . . Robot Hacks Applied . | . . . . . . . . . . . . . . Relay Couplers Released . | . . . . . . . . . . . . . . Fabnet Peak Effective % . | . . . . . . . . . . . . . . Robots Rewired . | . . . . . . . . . . . . . . Allies Hacked . | . . . . . . . . . . . . . . Hacks Repelled . | . . . . . . . . . . . . . . Allies | -11 -10 -10 -10 -9 -8 -7 -7 -7 -7 -7 -7 -6 -6 -------- Run | Yrd Mat Min Exi Min Mat Fac Was Fac Low Low Dat Pro Fac Total Allies 5 | . . . . 2 . . . . . . . 3 . Largest Group 2 | . . . . 2 2 . . . . . . 1 . Highest-Rated Group 96 | . . . . 47 47 . . . . . . 96 . Highest-Rated Ally 96 | . . . . 31 31 . . . . . . 96 . Total Orders . | . . . . . . . . . . . . . . Ally Attacks 40 | . . . . 5 1 . . . . . . 34 . Total Damage 806 | . . . . 63 . . . . . . . 743 . Kills 3 | . . . . . . . . . . . . 3 . Allies Corrupted . | . . . . . . . . . . . . . . Allies Melted . | . . . . . . . . . . . . . . Intel | -11 -10 -10 -10 -9 -8 -7 -7 -7 -7 -7 -7 -6 -6 ------- Run | Yrd Mat Min Exi Min Mat Fac Was Fac Low Low Dat Pro Fac Robot Analysis Total 1 | . . . . . 1 . . . . . . . . Derelict Logs Recovered 4 | . . 1 . 1 . . . . 1 1 . . . Drone Launches 7 | . . . . . . . . . . . . 7 . Drone Recoveries 7 | . . . . . . . . . . . . 7 . Decoded 0b10 Intel 41 | . . . . . . . . . . . . . 41 Patrols 9 | . . . . . . . . . . . . . 9 Investigations 1 | . . . . . . . . . . . . . 1 Reinforcements 6 | . . . . . . . . . . . . . 6 Guards 25 | . . . . . . . . . . . . . 25 Exploration | -11 -10 -10 -10 -9 -8 -7 -7 -7 -7 -7 -7 -6 -6 ------------- Run | Yrd Mat Min Exi Min Mat Fac Was Fac Low Low Dat Pro Fac Turns Passed 16238 | 89 196 926 604 1195 1526 1732 48 3952 678 619 33 2049 2591 Spaces Moved 11135 | 60 108 571 377 600 585 1066 127 3794 552 545 86 949 1715 Core 84 | 11 . . . . . . . . . . . 42 31 Treads 2000 | . . 331 377 600 190 . . . . . . 490 12 Legs 2418 | 49 108 240 . . 230 333 . . . . . 191 1267 Wheels . | . . . . . . . . . . . . . . Hover 6063 | . . . . . . 733 127 3794 552 545 86 226 . Flight 570 | . . . . . 165 . . . . . . . 405 Fastest Speed 22 | 50 120 120 160 160 34 38 38 22 22 38 38 34 35 Average Speed 84 | 108 120 151 160 160 106 66 38 37 35 46 38 181 103 Slowest Speed 350 | 120 120 190 160 160 160 131 38 102 38 98 38 350 300 Overloaded Moves 119 | . . . . . . . . 9 98 . . 12 . Propulsion Burnouts . | . . . . . . . . . . . . . . Robots Hopped . | . . . . . . . . . . . . . . Cave-ins Triggered . | . . . . . . . . . . . . . . Exploration Rate (%) 62 | 5 22 95 68 100 44 20 95 61 74 93 70 93 29 Regions Visited 13 Branch Regions 7 Pre-discovered Areas 2 | . . . . 1 . . . . . . 1 . . Known Exits Taken 3 | . . . . . 1 . . 1 . . . 1 . Unknown Exits Taken 8 | 1 1 1 1 1 . . . . 1 1 1 . . Scrap Searched 16 | . . 1 . 4 . . . . 2 6 . 3 . Spaces Dug 64 | . . . . . 3 9 . 31 3 . . 1 17 Terrain Destroyed 308 | . . . . 31 38 9 . 31 3 149 . 17 30 Melee 62 | . . . . . 3 9 . 31 3 . . 1 15 Projectile 16 | . . . . . 1 . . . . . . . 15 AOE 230 | . . . . 31 34 . . . . 149 . 16 . Terrain Rammed . | . . . . . . . . . . . . . . Walls Destroyed . | . . . . . . . . . . . . . . Machines Disabled . | . . . . . . . . . . . . . . Actions | -11 -10 -10 -10 -9 -8 -7 -7 -7 -7 -7 -7 -6 -6 --------- Run | Yrd Mat Min Exi Min Mat Fac Was Fac Low Low Dat Pro Fac Total 17272 | 78 155 597 378 806 1382 2030 126 6210 1030 882 85 1214 2299 Wait 5429 | . 28 1 . 178 669 887 . 2304 476 312 . 187 387 Move 11123 | 59 107 570 376 599 584 1066 126 3793 551 544 85 948 1715 Hop . | . . . . . . . . . . . . . . Pick Up 61 | 10 4 4 1 2 14 5 . 3 . . . 8 10 Fast Attach 53 | 5 1 . . . 10 7 . 8 . . . 8 14 Attach 36 | 1 . 2 . . 8 3 . 1 . . . 11 10 Detach 7 | . . . . . 1 1 . 1 . . . 3 1 Swap 62 | . 1 1 . 5 15 13 . 8 . 5 . 4 10 Drop 68 | 1 4 2 1 3 17 13 . 11 . . . 2 14 Fire 250 | 2 10 17 . 19 31 23 . 7 . 21 . 24 96 Melee 160 | . . . . . 33 12 . 53 3 . . 17 42 Ram . | . . . . . . . . . . . . . . Kick . | . . . . . . . . . . . . . . Crush . | . . . . . . . . . . . . . . Escape Stasis 21 | . . . . . . . . 21 . . . . . Rewire . | . . . . . . . . . . . . . . Trap 2 | . . . . . . . . . . . . 2 . Miscellaneous . | . . . . . . . . . . . . . . Route ------- -11/Scrapyard -10/Materials -10/Mines (discovered 3 exits: [*Mat x2] / *Exi) -10/Exiles -9/Mines (discovered 2 exits: *Mat x2) -8/Materials (discovered 4 exits: *Fac x3 / [*Sto]) -7/Factory (discovered 6 exits: *Fac x4 / Low x2) -7/Waste -7/Factory (discovered 4 exits: *Fac x2 / *Low x2) -7/Lower Caves -7/Lower Caves -7/Data Miner -6/Proximity Caves -6/Factory (discovered 3 exits: Fac x2 / Low) History --------- Turn | Location | Event 56 | -11/Scrapyard | Discovered new exit (range 12) 90 | -11/Scrapyard | Entered Materials 211 | -10/Materials | Discovered new exit (range 6) 286 | -10/Materials | Entered Mines 302 | -10/Mines | Build established: Mutant 316 | -10/Mines | Assembled infested the area 321 | -10/Mines | Assisted by a Guerilla fighting off Assembled 409 | -10/Mines | Learned Materials emergency access door positions 601 | -10/Mines | Found a hidden stash of uninstalled traps 875 | -10/Mines | Discovered new exit (range 10) 1137 | -10/Mines | Received a Rocket Launcher from a helpful Derelict 1180 | -10/Mines | Discovered new exit (range 12) 1204 | -10/Mines | Deemed a non-threat by the Exiles lab entrance 1205 | -10/Mines | Discovered new exit (range 5) 1212 | -10/Mines | Entered Exiles 1251 | -10/Exiles | Met 8R-AWN 1275 | -10/Exiles | Met EX-HEX 1332 | -10/Exiles | Met EX-BIN 1352 | -10/Exiles | Aligned with FarCom system 1353 | -10/Exiles | Given EX-Vault access code 1440 | -10/Exiles | Opened EX-Vault 1451 | -10/Exiles | Found Gui. Plasma Cannon 1486 | -10/Exiles | Warned to stay clear of 0b10 Research branches 1537 | -10/Exiles | Met EX-DEC 1610 | -10/Exiles | Visited The Gauntlet 1795 | -10/Exiles | Discovered new exit (range 15) 1816 | -10/Exiles | Left Exiles lab with Gui. Plasma Cannon 1816 | -10/Exiles | Entered Mines 2020 | -9/Mines | Learned Materials stockpile data 2038 | -9/Mines | Found the Drone Emporium 2050 | -9/Mines | Found Prototype Device 2126 | -9/Mines | Found a damaged Exp. Sensor Array with a note attached 2130 | -9/Mines | Found Prototype Device 2474 | -9/Mines | Discovered new exit (range 6) 2566 | -9/Mines | Learned location of Storage (-8) 2716 | -9/Mines | Core integrity fell below 50% 2972 | -9/Mines | Discovered new exit (range 7) 3011 | -9/Mines | Entered Materials 3011 | -8/Materials | Accompanied by 2 allies 3011 | -8/Materials | Evolved 4 slots: Propulsion x1, Utility x3 3016 | -8/Materials | Led the pair of lost Derelicts to an unsafe place 3166 | -8/Materials | Discovered new exit (range 16) 3327 | -8/Materials | Build established: Scavenger-Scout 3406 | -8/Materials | Lost 3 parts (1p2n) 3516 | -8/Materials | Discovered new exit (range 13) 3630 | -8/Materials | Identified exit to Factory 3636 | -8/Materials | Identified Exp. Sensor Array 3638 | -8/Materials | Identified Splice Drone Bay 4331 | -8/Materials | Build established: Scavenger-Skirmisher 4537 | -8/Materials | Entered Factory 4537 | -7/Factory | Evolved 2 slots: Propulsion x1, Utility x1 4855 | -7/Factory | Build established: Hacker-Skirmisher 5074 | -7/Factory | Discovered new exit (range 6) 5437 | -7/Factory | Identified exit to Lower Caves 5437 | -7/Factory | Identified exit to Factory 5981 | -7/Factory | Build established: Hacker-Scout 6269 | -7/Factory | Sucked down chute 6269 | -7/Factory | Entered Waste 6272 | -7/Waste | Spotted C-40 Crusher 6272 | -7/Waste | Spotted C-40 Crusher 6274 | -7/Waste | Spotted C-40 Crusher 6275 | -7/Waste | Spotted C-40 Crusher 6301 | -7/Waste | Spotted C-40 Crusher 6301 | -7/Waste | Spotted C-40 Crusher 6313 | -7/Waste | Discovered new exit (range 11) 6317 | -7/Waste | Entered Factory 6474 | -7/Factory | Discovered exit to Factory (range 15) 7626 | -7/Factory | Discovered exit to Factory (range 10) 8415 | -7/Factory | Fabricated Cld. Airjet? 8603 | -7/Factory | Fabricated Cld. Airjet? 9077 | -7/Factory | Repaired Cld. Airjet 10269 | -7/Factory | Entered Lower Caves 10270 | -7/Lower Caves | Encountered a Warlord checkpoint 10570 | -7/Lower Caves | Build established: Hacker-Mutant 10627 | -7/Lower Caves | Spotted B-75 Beast 10849 | -7/Lower Caves | Learned location of 2 exits from Factory 10935 | -7/Lower Caves | Attracted the attention of an 0b10 outpost 10944 | -7/Lower Caves | Discovered new exit (range 16) 10947 | -7/Lower Caves | Entered another Lower Caves area 11236 | -7/Lower Caves | Learned location of 1 exit from Factory 11415 | -7/Lower Caves | Discovered new exit (range 15) 11566 | -7/Lower Caves | Entered Data Miner 11566 | -7/Data Miner | Discovered new exit (range 6) 11574 | -7/Data Miner | Met Data Miner 11582 | -7/Data Miner | Learned location of Section 7 (-2) 11582 | -7/Data Miner | Acquired the access code to Warlord's prototype stash 11589 | -7/Data Miner | Received God Mode back door access code from Data Miner 11599 | -7/Data Miner | Entered Proximity Caves 11820 | -6/Proximity Caves | Lost 3 parts (2n1w) 12129 | -6/Proximity Caves | Discovered exit to Factory (range 11) 13235 | -6/Proximity Caves | Attracted the attention of an 0b10 outpost 13286 | -6/Proximity Caves | Core integrity fell below 50% 13299 | -6/Proximity Caves | Escorted by Enhanced Grunt 13324 | -6/Proximity Caves | Lost 9 parts (1p2n4u2w) 13358 | -6/Proximity Caves | Core integrity fell below 20% 13378 | -6/Proximity Caves | System corruption reached 10% 13614 | -6/Proximity Caves | Found Alien Artifact 13648 | -6/Proximity Caves | Entered Factory 13648 | -6/Factory | Evolved 2 slots: Propulsion x1, Utility x1 13649 | -6/Factory | Identified exit to Factory 13649 | -6/Factory | Identified exit to Lower Caves 13710 | -6/Factory | Build established: Scavenger-Mutant 14214 | -6/Factory | Build established: Hacker-Mutant 14532 | -6/Factory | Fabricated Cld. Cesium-ion Thruster? 14721 | -6/Factory | Build established: Scavenger-Mutant 14932 | -6/Factory | Cargo convoy interrupted 15114 | -6/Factory | Build established: Hacker-Mutant 15878 | -6/Factory | Identified Core Expander 15878 | -6/Factory | Installed Core Expander, added new Power slot 15893 | -6/Factory | Core integrity fell below 50% 15922 | -6/Factory | Core integrity fell below 20% 15949 | -6/Factory | Lost 15 parts (2p5n3u5w) 16239 | -6/Factory | Destroyed by P-60 Hacker with Shock Rifle Last Messages --------------- effect. 16175_ T-07 Excavator knocked back. 16176_ T-07 Excavator system terminally corrupted. 16176_ Seismic Detector fried. 16178_ Acquired 10 matter. 16224_ U-05 Engineer builds a Wall. 16226_ P-60 Hacker suffers critical hit (Smash). 16226_ Destroyed Imp. Heat Sink. 16226_ P-60 Hacker system corrupted by crushing effect. 16226_ P-60 Hacker knocked back. 16229_ Destroyed Gravmag System. 16229_ P-60 Hacker system corrupted by crushing effect. 16229_ P-60 Hacker knocked back. 16236_ P-60 Hacker suffers critical hit (Smash). 16236_ Destroyed Shock Rifle. 16236_ Destroyed Gravmag System. 16236_ P-60 Hacker system corrupted by crushing effect. Map ----- +----------------------------------------------------+ | # """ ## #??????########??# !!#???????????? | | # """"" ## #??????# #??# #???????????? | | # """"" ## #?#????# #??# #???????????? | | # ## #??????# #??# = #???????????? | | # """ ## #??????# #??#*!|#???????????? | | # """"" ## #??????# #?##[ #???????????? | | # """"" ## ##?????# #?## ! #???????????? | | # # ##########+######= #???????????? | | # # = !#???????????? | | # !# ########## =]#???####????? | | # ##############! #??? ????? | | ##########+###?# ## ##?? ????? | | ?????????# #???# ^ ## """ #?? ????? | | ?????????# #???# # """ #?? #????? | | ?????????# #???# + """% #?# #????? | | ?????????# #???# # g #? #????? | | ???#?????# #???# # g /% #?T +????? | | ?????????# #???# [ #########g #?# #????? | | ?????????# #???# ! ###?????# #?# #????? | | ?????????# #???################### #?# #????? | | ?????????= ???????# u + #?# #????? | | ????????? ???????# # #?# #????? | | ????????? ???????# "" "" """ # #?# #????? | | ????????? ???????# ""T"" """ # ### #????? | | ????????? ???????# """ """ # #????? | | ?????????# #???????# @p # #????? | | ?????????? ????????############### #????? | | ?????????? ??????????#################### #????? | | ?????????? ??????????## T # #????? | | ?????????????????????## """""" # #????? | | ??????????g???????????# """""" + #????? | | ??????????????????????# """""" # #????? | | ??????????????????????# """""" # #????? | | ??????????????????????# # #????? | | ??????????????????????# # #????? | | ????????????????????############+######## #????? | | ????????????????????# ! ]#" #??????# #????? | | ????????????????????# ! ## #??????# +????? | | ?????????# #######??# ##+######## #????? | | ?????????#% #??# ] # # #????? | | ?????????#+### #########/#### """"""" # #????? | | ?????????????# ### """""""?#% #????? | | ?????????????# + """""""?# #????? | | ?????????????# """"" ## """"""??# #????? | | ?????????????# """"" ## ?+ #????? | | ?????????????# """ !## ] # #????? | | ?????????????# ^ ## #%!%#????? | | ?????????????# """"" ############![[###### | | ?????????????# """"" ^ ! ## # %=!== | | ###??????????# """ ## """ # *%* ##### | +----------------------------------------------------+ Best States ------------- Heat Dissipation 56 Energy Generation 18 Energy Capacity 310 Matter Stores 300 Matter Capacity 300 Sight Range 16 Terrain Scan Range 16 Terrain Scan Density 310 ECM Strength 1 Jamming Range 14 EM Shielding 2 Armor Coverage 375 Evasion (%) 63 Recoil Reduction 3 Offensive Hacking 20 Defensive Hacking 20 Trap Extractor Capacity 6 Item Schematics ----------------- Exp. Sensor Array | -7/Factory | Scanalyzed Cld. Airjet | -7/Factory | Scanalyzed Cld. VTOL Module | -7/Factory | Hacked Cld. Cesium-ion Thruster | -7/Data Miner | Free Lgt. Regenerative Plating | -7/Data Miner | Free Combat Drone Bay | -7/Data Miner | Free Gravity Neutralizer | -7/Data Miner | Free Gui. EMP Blaster | -7/Data Miner | Free Nuclear Pulse Array | -7/Data Miner | Free Imp. Shock Absorption System | -7/Data Miner | Free Hvy. Mass Driver | -7/Data Miner | Free Robot Schematics ------------------ O-24 Administrator | -7/Data Miner | Free G-47 Trooper | -7/Data Miner | Free B-48 Gladiator | -7/Data Miner | Free S-27 Virus | -7/Data Miner | Free Fabricated ------------ Cld. Airjet | x1 | -7/Factory Cld. Airjet | x1 | -7/Factory Cld. Cesium-ion Thruster | x1 | -6/Factory Alien Tech Used ----------------- Core Expander Achievements -------------- Alien Tech Maximum Efficiency The Oracle Challenges ------------ None Game ------ Seed DynamicNovaShield Manual? 0 Play Time 02:19:39 Cumulative 90.7 hours Start 2024.12.02 @ 20:51:31 End 2024.12.02 @ 23:41:46 Sessions 1 Manual Loads 0 Difficulty Rogue Special Mode None Game No. 97 Rogue 97 Adventurer 0 Explorer 0 Win Type - Total 0 Types 0/0/0/0/0/0/0/0/0 Lore% 14 Gallery% 38 Achievement% 35 Wizard Run 0 Options --------- Layout 2 ASCII 0 Keyboard 0 Movement Mouse Keybinds 0 Fullscreen 2 Font 16/SmallcapsGlow Map View 55x47 Zoom Use 2% Tactical HUD 1 Map Filters NONE Filters NONE Steam 1 RUN: 60d1455b-0c1e-44ba-ac0b-00e0710aa475